[Event "*** MasterClass Titled Tuesday Blitz"]
[Site "Chess.com"]
[Date "2017.08.01"]
[Round "6"]
[White "abubakrtagelsir"]
[Black "Malev212"]
[Result "0-1"]
[WhiteElo "2293"]
[BlackElo "2478"]
[TimeControl "180+2"]
[EndTime "14:17:58 PDT"]
[Termination "Malev212 won by resignation"]

1. e4 {[%clk 0:02:59.2]} 1... a6 {[%clk 0:02:59.4]} 2. d4 {[%clk 0:02:59.4]}
2... b5 {[%clk 0:03:00.7]} 3. Bd3 {[%clk 0:02:51]} 3... e6 {[%clk 0:03:00.6]} 4.
Nf3 {[%clk 0:02:51.7]} 4... c5 {[%clk 0:03:00.3]} 5. c3 {[%clk 0:02:52.2]} 5...
Bb7 {[%clk 0:03:00]} 6. O-O {[%clk 0:02:53]} 6... Nf6 {[%clk 0:03:00.7]} 7. Re1
{[%clk 0:02:53.4]} 7... Be7 {[%clk 0:02:58.2]} 8. a4 {[%clk 0:02:51.8]} 8...
cxd4 {[%clk 0:02:57.1]} 9. cxd4 {[%clk 0:02:47.8]} 9... bxa4 {[%clk 0:02:56.9]}
10. Nc3 {[%clk 0:02:45.8]} 10... Nc6 {[%clk 0:02:56]} 11. d5 {[%clk 0:02:43.6]}
11... Nb4 {[%clk 0:02:55.9]} 12. d6 {[%clk 0:02:29]} 12... Bf8 {[%clk
0:02:09.2]} 13. Bb1 {[%clk 0:01:57.7]} 13... Rc8 {[%clk 0:02:04.4]} 14. Rxa4
{[%clk 0:01:40.6]} 14... a5 {[%clk 0:01:54.1]} 15. e5 {[%clk 0:01:41]} 15...
Nfd5 {[%clk 0:01:53.8]} 16. Nxd5 {[%clk 0:01:38]} 16... Nxd5 {[%clk 0:01:54.1]}
17. Bg5 {[%clk 0:01:35.5]} 17... Qb6 {[%clk 0:01:51.4]} 18. Be4 {[%clk
0:01:16.7]} 18... h6 {[%clk 0:01:49]} 19. Bc1 {[%clk 0:01:15.8]} 19... g5 {[%clk
0:01:45.9]} 20. Rd4 {[%clk 0:01:14.1]} 20... g4 {[%clk 0:01:37.8]} 21. Nh4
{[%clk 0:01:12.7]} 21... Rxc1 {[%clk 0:01:35.7]} 22. Qxc1 {[%clk 0:01:05.9]}
22... Qxd4 {[%clk 0:01:36.8]} 23. Bxd5 {[%clk 0:00:53.2]} 23... Qxd5 {[%clk
0:01:34]} 24. Qc7 {[%clk 0:00:52.3]} 24... Bxd6 {[%clk 0:01:14.1]} 25. exd6
{[%clk 0:00:48.4]} 25... O-O {[%clk 0:01:13.4]} 26. Qc1 {[%clk 0:00:46.7]} 26...
Qg5 {[%clk 0:01:11.5]} 27. Qc7 {[%clk 0:00:15.7]} 27... Bc6 {[%clk 0:00:58.7]}
28. g3 {[%clk 0:00:12]} 28... Qd5 {[%clk 0:00:59]} 29. f3 {[%clk 0:00:13]} 29...
Qd4+ {[%clk 0:00:56.2]} 30. Kf1 {[%clk 0:00:03.9]} 30... gxf3 {[%clk 0:00:54.3]}
31. Qxa5 {[%clk 0:00:02.8]} 31... Ra8 {[%clk 0:00:49]} 32. Qc3 {[%clk
0:00:02.7]} 32... Qxc3 {[%clk 0:00:46.7]} 33. bxc3 {[%clk 0:00:03.2]} 33... Ra2
{[%clk 0:00:47.9]} 34. Nxf3 {[%clk 0:00:04]} 34... Bxf3 {[%clk 0:00:47.2]} 35.
Re3 {[%clk 0:00:04.8]} 35... Bc6 {[%clk 0:00:46.5]} 36. c4 {[%clk 0:00:05.8]}
36... Rxh2 {[%clk 0:00:45.3]} 37. c5 {[%clk 0:00:06.6]} 37... Rc2 {[%clk
0:00:45.8]} 38. Re5 {[%clk 0:00:07.4]} 38... f5 {[%clk 0:00:46.6]} 0-1

[Event "*** MasterClass Titled Tuesday Blitz"]
[Site "Chess.com"]
[Date "2017.08.01"]
[Round "6"]
[White "guilty93"]
[Black "matein28"]
[Result "1/2-1/2"]
[WhiteElo "2386"]
[BlackElo "2380"]
[TimeControl "180+2"]
[EndTime "14:18:01 PDT"]
[Termination "Game drawn by agreement"]

1. e4 {[%clk 0:03:01.9]} 1... d5 {[%clk 0:03:01]} 2. exd5 {[%clk 0:03:00.6]}
2... Qxd5 {[%clk 0:02:56.7]} 3. Nc3 {[%clk 0:03:01.3]} 3... Qd6 {[%clk 0:02:58]}
4. d4 {[%clk 0:02:58.7]} 4... Nf6 {[%clk 0:02:59.4]} 5. Nf3 {[%clk 0:02:59.3]}
5... c6 {[%clk 0:03:01]} 6. h3 {[%clk 0:02:53]} 6... Bf5 {[%clk 0:03:01.2]} 7.
Ne5 {[%clk 0:02:53.7]} 7... Nbd7 {[%clk 0:03:01.8]} 8. Bf4 {[%clk 0:02:53.7]}
8... Nd5 {[%clk 0:03:02.1]} 9. Nxd5 {[%clk 0:02:52.1]} 9... Qxd5 {[%clk
0:03:01.6]} 10. Nxd7 {[%clk 0:02:24.1]} 10... Qxd7 {[%clk 0:02:59.2]} 11. Bc4
{[%clk 0:02:22.1]} 11... e6 {[%clk 0:02:58.7]} 12. Qe2 {[%clk 0:02:21.3]} 12...
Qxd4 {[%clk 0:02:57]} 13. Be3 {[%clk 0:02:22.5]} 13... Qxb2 {[%clk 0:02:52]} 14.
O-O {[%clk 0:02:22.7]} 14... Qxc2 {[%clk 0:02:52.7]} 15. Bd2 {[%clk 0:02:21.6]}
15... Qe4 {[%clk 0:02:52.6]} 16. Be3 {[%clk 0:02:22.6]} 16... Qc2 {[%clk
0:02:42.2]} 17. Bd2 {[%clk 0:02:22]} 17... Bc5 {[%clk 0:02:42.8]} 18. Rfe1
{[%clk 0:02:19.6]} 18... O-O {[%clk 0:02:41.7]} 19. Rac1 {[%clk 0:02:19.5]}
19... Qa4 {[%clk 0:02:30.2]} 20. Bb3 {[%clk 0:02:20.4]} 20... Qa3 {[%clk
0:02:31.3]} 21. Rc4 {[%clk 0:02:01.1]} 21... Be7 {[%clk 0:02:16.1]} 22. Bc3
{[%clk 0:01:45.6]} 22... Rad8 {[%clk 0:02:09.3]} 23. Ra4 {[%clk 0:01:38]} 23...
Qd6 {[%clk 0:01:52.5]} 24. Rxa7 {[%clk 0:01:37]} 24... Qc7 {[%clk 0:01:49.9]}
25. Ba5 {[%clk 0:01:36.1]} 25... Qb8 {[%clk 0:01:49.7]} 26. Bxd8 {[%clk
0:01:37.1]} 26... Bxd8 {[%clk 0:01:51.2]} 27. Ra4 {[%clk 0:01:36.4]} 27... Bf6
{[%clk 0:01:44.9]} 28. Bc2 {[%clk 0:01:29.4]} 28... Bxc2 {[%clk 0:01:32.8]} 29.
Qxc2 {[%clk 0:01:31.3]} 29... Rc8 {[%clk 0:01:33.8]} 30. Rb1 {[%clk 0:01:30.8]}
30... b5 {[%clk 0:01:31.7]} 31. Rab4 {[%clk 0:01:29.4]} 31... Be7 {[%clk
0:01:32.3]} 32. R4b3 {[%clk 0:01:25.3]} 32... Qa8 {[%clk 0:01:27.2]} 33. Rc3
{[%clk 0:01:25.5]} 33... b4 {[%clk 0:01:26.1]} 34. Rc4 {[%clk 0:01:26.6]} 34...
c5 {[%clk 0:01:27.1]} 35. Rb3 {[%clk 0:01:27]} 35... Rd8 {[%clk 0:01:20.7]} 36.
h4 {[%clk 0:01:15.3]} 36... Qd5 {[%clk 0:01:17.8]} 37. g3 {[%clk 0:01:16.4]}
37... Qe5 {[%clk 0:01:01.5]} 38. Kg2 {[%clk 0:01:16.4]} 38... g6 {[%clk
0:00:59.5]} 39. a3 {[%clk 0:01:15.2]} 39... Qe1 {[%clk 0:00:46.8]} 40. Re3
{[%clk 0:01:14.7]} 40... Qa1 {[%clk 0:00:43.8]} 41. axb4 {[%clk 0:01:11.8]}
41... cxb4 {[%clk 0:00:45.1]} 42. Rc8 {[%clk 0:01:13]} 42... Qd4 {[%clk
0:00:44.7]} 43. Rxd8+ {[%clk 0:01:13.8]} 43... Qxd8 {[%clk 0:00:46.6]} 44. Qc4
{[%clk 0:01:13.6]} 44... Qa8+ {[%clk 0:00:46.7]} 45. Kh2 {[%clk 0:01:14.5]}
45... Qb7 {[%clk 0:00:44]} 46. Rd3 {[%clk 0:01:09]} 46... h5 {[%clk 0:00:43.7]}
47. Kg1 {[%clk 0:01:09.6]} 47... Bf6 {[%clk 0:00:41.1]} 48. Rb3 {[%clk
0:01:10.5]} 48... Be7 {[%clk 0:00:42.1]} 49. Rd3 {[%clk 0:01:11.4]} 49... Bf6
{[%clk 0:00:42.8]} 50. Rb3 {[%clk 0:01:12.5]} 50... Be7 {[%clk 0:00:41.5]}
1/2-1/2

[Event "*** MasterClass Titled Tuesday Blitz"]
[Site "Chess.com"]
[Date "2017.08.01"]
[Round "6"]
[White "swayamsm"]
[Black "SipkeErnst"]
[Result "0-1"]
[WhiteElo "2441"]
[BlackElo "2534"]
[TimeControl "180+2"]
[EndTime "14:18:24 PDT"]
[Termination "SipkeErnst won by resignation"]

1. d4 {[%clk 0:03:01.9]} 1... d5 {[%clk 0:03:00.1]} 2. c4 {[%clk 0:03:02.3]}
2... c6 {[%clk 0:03:01.6]} 3. f3 {[%clk 0:03:02.5]} 3... e5 {[%clk 0:02:54.7]}
4. dxe5 {[%clk 0:02:38.9]} 4... Qh4+ {[%clk 0:02:40.7]} 5. g3 {[%clk 0:02:36]}
5... Qxc4 {[%clk 0:02:39.1]} 6. Nc3 {[%clk 0:02:34.5]} 6... Qc5 {[%clk
0:02:23.9]} 7. e3 {[%clk 0:02:29.7]} 7... Be6 {[%clk 0:02:21.5]} 8. Nge2 {[%clk
0:02:27.6]} 8... Nd7 {[%clk 0:02:21.7]} 9. Bg2 {[%clk 0:02:18.1]} 9... Nxe5
{[%clk 0:02:13.8]} 10. O-O {[%clk 0:02:15.8]} 10... Nc4 {[%clk 0:02:14]} 11. Nd4
{[%clk 0:02:14.8]} 11... Nf6 {[%clk 0:02:13.3]} 12. Kh1 {[%clk 0:02:00]} 12...
Be7 {[%clk 0:02:09.2]} 13. e4 {[%clk 0:01:37.5]} 13... dxe4 {[%clk 0:02:03]} 14.
Nxe6 {[%clk 0:01:38.3]} 14... fxe6 {[%clk 0:02:02.4]} 15. fxe4 {[%clk
0:01:39.9]} 15... O-O {[%clk 0:01:34.6]} 16. Qe2 {[%clk 0:01:36.1]} 16... Bd6
{[%clk 0:01:23.1]} 17. b3 {[%clk 0:01:11.6]} 17... Ne5 {[%clk 0:01:16.3]} 18.
Na4 {[%clk 0:01:08.8]} 18... Qb5 {[%clk 0:01:06.7]} 19. Qxb5 {[%clk 0:01:01.6]}
19... cxb5 {[%clk 0:01:07.6]} 20. Nc3 {[%clk 0:01:03.3]} 20... a6 {[%clk
0:01:09.1]} 21. Bf4 {[%clk 0:00:57.4]} 21... Rad8 {[%clk 0:00:52.9]} 22. Rad1
{[%clk 0:00:56.6]} 22... Bb8 {[%clk 0:00:50.9]} 23. Bh3 {[%clk 0:00:51.1]} 23...
Kf7 {[%clk 0:00:48.9]} 24. Bg2 {[%clk 0:00:31.8]} 24... h6 {[%clk 0:00:42.5]}
25. h4 {[%clk 0:00:31.7]} 25... Ke7 {[%clk 0:00:41.5]} 26. Be3 {[%clk 0:00:28]}
26... Rc8 {[%clk 0:00:42.8]} 27. Ne2 {[%clk 0:00:25.6]} 27... Nfg4 {[%clk
0:00:42.2]} 28. Bf4 {[%clk 0:00:23.4]} 28... Ba7 {[%clk 0:00:35.7]} 29. Rd2
{[%clk 0:00:19.2]} 29... Be3 {[%clk 0:00:25.7]} 30. Bxe3 {[%clk 0:00:16.8]}
30... Rxf1+ {[%clk 0:00:25.1]} 31. Bxf1 {[%clk 0:00:17.3]} 31... Nxe3 {[%clk
0:00:26.3]} 32. Bg2 {[%clk 0:00:13.7]} 32... Rc2 {[%clk 0:00:23.5]} 33. Rxc2
{[%clk 0:00:13.9]} 33... Nxc2 {[%clk 0:00:25.4]} 34. Kg1 {[%clk 0:00:13.5]}
34... Nb4 {[%clk 0:00:24.4]} 35. Nc3 {[%clk 0:00:12.9]} 35... Ned3 {[%clk
0:00:22.6]} 36. Bf1 {[%clk 0:00:14.2]} 36... Nc1 {[%clk 0:00:22.8]} 37. a3
{[%clk 0:00:15.1]} 37... Nc2 {[%clk 0:00:22.9]} 38. a4 {[%clk 0:00:10.5]} 38...
b4 {[%clk 0:00:23.6]} 39. Na2 {[%clk 0:00:08.4]} 39... Nxa2 {[%clk 0:00:24.1]}
0-1

[Event "*** MasterClass Titled Tuesday Blitz"]
[Site "Chess.com"]
[Date "2017.08.01"]
[Round "6"]
[White "maciek_92"]
[Black "Tesla37"]
[Result "1-0"]
[WhiteElo "2534"]
[BlackElo "2649"]
[TimeControl "180+2"]
[EndTime "14:18:25 PDT"]
[Termination "maciek_92 won by resignation"]

1. c4 {[%clk 0:03:01.9]} 1... e5 {[%clk 0:03:00.1]} 2. Nc3 {[%clk 0:03:02.4]}
2... Nc6 {[%clk 0:03:01.6]} 3. g3 {[%clk 0:03:03.3]} 3... Bc5 {[%clk 0:03:02.3]}
4. Bg2 {[%clk 0:03:04.5]} 4... Nf6 {[%clk 0:03:03.8]} 5. e3 {[%clk 0:03:04.5]}
5... O-O {[%clk 0:03:04.5]} 6. Nge2 {[%clk 0:03:05]} 6... a6 {[%clk 0:03:06.1]}
7. O-O {[%clk 0:03:04.8]} 7... Ba7 {[%clk 0:03:07]} 8. d4 {[%clk 0:03:04.8]}
8... d6 {[%clk 0:03:08.2]} 9. h3 {[%clk 0:03:05.4]} 9... h6 {[%clk 0:03:07.7]}
10. Kh2 {[%clk 0:03:02.6]} 10... Bf5 {[%clk 0:03:06.8]} 11. d5 {[%clk
0:02:52.5]} 11... Ne7 {[%clk 0:03:06.1]} 12. b4 {[%clk 0:02:54]} 12... Nd7
{[%clk 0:02:47.8]} 13. f4 {[%clk 0:02:39.3]} 13... Bh7 {[%clk 0:02:44.4]} 14. g4
{[%clk 0:02:32.7]} 14... exf4 {[%clk 0:02:35.7]} 15. exf4 {[%clk 0:02:32.2]}
15... h5 {[%clk 0:02:21.6]} 16. Ng3 {[%clk 0:02:21.3]} 16... hxg4 {[%clk
0:02:20.2]} 17. hxg4 {[%clk 0:02:23.2]} 17... Re8 {[%clk 0:01:59.9]} 18. Bb2
{[%clk 0:02:21.1]} 18... Ng6 {[%clk 0:01:52.7]} 19. g5 {[%clk 0:02:19.5]} 19...
Nh4 {[%clk 0:01:38.1]} 20. Qg4 {[%clk 0:02:02.1]} 20... Nxg2 {[%clk 0:01:36.1]}
21. Kxg2 {[%clk 0:02:04]} 21... Nf8 {[%clk 0:01:30]} 22. f5 {[%clk 0:02:01.4]}
22... Qd7 {[%clk 0:01:27.6]} 23. Nce4 {[%clk 0:02:00.9]} 23... Qa4 {[%clk
0:01:21.6]} 24. c5 {[%clk 0:01:31.2]} 24... dxc5 {[%clk 0:01:11.8]} 25. bxc5
{[%clk 0:01:28.8]} 25... Qb5 {[%clk 0:01:07]} 26. Rab1 {[%clk 0:01:22]} 26...
Qd3 {[%clk 0:01:07.2]} 27. Rbd1 {[%clk 0:01:19.1]} 27... Qb5 {[%clk 0:00:58.5]}
28. Rb1 {[%clk 0:00:51.7]} 28... Qd3 {[%clk 0:00:55.2]} 29. Rbd1 {[%clk
0:00:52.8]} 29... Qb5 {[%clk 0:00:55.2]} 30. Bd4 {[%clk 0:00:50.4]} 30... Rad8
{[%clk 0:00:38.4]} 31. Nh5 {[%clk 0:00:35.2]} 31... Rxe4 {[%clk 0:00:14.2]} 32.
Qxe4 {[%clk 0:00:37.1]} 32... Bxc5 {[%clk 0:00:13.6]} 33. Bxg7 {[%clk
0:00:34.1]} 33... Nd7 {[%clk 0:00:14.5]} 34. Bf6 {[%clk 0:00:24.6]} 34... Rf8
{[%clk 0:00:13.1]} 35. g6 {[%clk 0:00:24.2]} 35... fxg6 {[%clk 0:00:12.1]} 36.
fxg6 {[%clk 0:00:25.6]} 36... Nxf6 {[%clk 0:00:13.4]} 37. Nxf6+ {[%clk
0:00:25.8]} 37... Rxf6 {[%clk 0:00:14.7]} 38. gxh7+ {[%clk 0:00:26.4]} 38... Kh8
{[%clk 0:00:14.9]} 39. Qe5 {[%clk 0:00:25.4]} 39... Bd4 {[%clk 0:00:07.8]} 40.
Qxd4 {[%clk 0:00:18.1]} 40... Qe2+ {[%clk 0:00:08.6]} 41. Rf2 {[%clk 0:00:19.5]}
1-0

[Event "*** MasterClass Titled Tuesday Blitz"]
[Site "Chess.com"]
[Date "2017.08.01"]
[Round "6"]
[White "olomi007"]
[Black "ShimanovAlex"]
[Result "1/2-1/2"]
[WhiteElo "2513"]
[BlackElo "2610"]
[TimeControl "180+2"]
[EndTime "14:18:37 PDT"]
[Termination "Game drawn by repetition"]

1. e4 {[%clk 0:03:01.9]} 1... c6 {[%clk 0:03:01.9]} 2. d4 {[%clk 0:03:01.9]}
2... d5 {[%clk 0:03:02.9]} 3. Nc3 {[%clk 0:03:03.6]} 3... g6 {[%clk 0:03:03.1]}
4. h3 {[%clk 0:03:04]} 4... Bg7 {[%clk 0:03:03.2]} 5. Nf3 {[%clk 0:03:05.1]}
5... Nf6 {[%clk 0:03:04.3]} 6. Bd3 {[%clk 0:03:04.9]} 6... dxe4 {[%clk 0:03:03]}
7. Nxe4 {[%clk 0:03:05.6]} 7... Nxe4 {[%clk 0:03:00.9]} 8. Bxe4 {[%clk
0:03:06.6]} 8... O-O {[%clk 0:03:02.8]} 9. O-O {[%clk 0:03:05.2]} 9... c5 {[%clk
0:03:03.7]} 10. Be3 {[%clk 0:02:59.1]} 10... cxd4 {[%clk 0:02:59.5]} 11. Bxd4
{[%clk 0:02:59.2]} 11... Bxd4 {[%clk 0:02:59.3]} 12. Qxd4 {[%clk 0:02:53.8]}
12... Qxd4 {[%clk 0:02:59.1]} 13. Nxd4 {[%clk 0:02:55.2]} 13... a6 {[%clk
0:03:00.6]} 14. Rad1 {[%clk 0:02:53.5]} 14... Ra7 {[%clk 0:03:00]} 15. Rfe1
{[%clk 0:02:47.9]} 15... b6 {[%clk 0:03:00.2]} 16. Bf3 {[%clk 0:02:42.9]} 16...
Rc7 {[%clk 0:02:59.9]} 17. c3 {[%clk 0:02:43.3]} 17... Rd8 {[%clk 0:02:49.8]}
18. Kf1 {[%clk 0:02:32.3]} 18... Rd6 {[%clk 0:02:47.4]} 19. Nc2 {[%clk
0:02:22.5]} 19... Rxd1 {[%clk 0:02:45.4]} 20. Rxd1 {[%clk 0:02:23.1]} 20... Rd7
{[%clk 0:02:46]} 21. Rxd7 {[%clk 0:02:20]} 21... Bxd7 {[%clk 0:02:45.6]} 22. Nb4
{[%clk 0:02:18.8]} 22... e6 {[%clk 0:02:42.9]} 23. Ke2 {[%clk 0:02:11.6]} 23...
Kf8 {[%clk 0:02:42.7]} 24. c4 {[%clk 0:02:10.5]} 24... g5 {[%clk 0:02:39.4]} 25.
Kd3 {[%clk 0:02:04.9]} 25... Ke7 {[%clk 0:02:38.2]} 26. Kc3 {[%clk 0:02:00.1]}
26... Kd6 {[%clk 0:02:35.6]} 27. Nd3 {[%clk 0:01:59.1]} 27... a5 {[%clk
0:02:34.5]} 28. g4 {[%clk 0:01:47.9]} 28... f5 {[%clk 0:02:27.8]} 29. gxf5
{[%clk 0:01:42.8]} 29... exf5 {[%clk 0:02:27.2]} 30. b3 {[%clk 0:01:39.5]} 30...
f4 {[%clk 0:02:17.1]} 31. Bg4 {[%clk 0:01:29.1]} 31... Be8 {[%clk 0:02:07]} 32.
a3 {[%clk 0:01:25.7]} 32... Bg6 {[%clk 0:02:06.3]} 33. b4 {[%clk 0:01:20.8]}
33... axb4+ {[%clk 0:02:04.1]} 34. axb4 {[%clk 0:01:22.7]} 34... Bxd3 {[%clk
0:02:03.4]} 35. Kxd3 {[%clk 0:01:23.5]} 35... Nc6 {[%clk 0:02:04.9]} 36. Kc3
{[%clk 0:01:13.3]} 36... h6 {[%clk 0:02:04.3]} 37. Bf3 {[%clk 0:01:07.5]} 37...
Nb8 {[%clk 0:01:51.1]} 38. Kd4 {[%clk 0:01:06.9]} 38... Na6 {[%clk 0:01:51.7]}
39. Kc3 {[%clk 0:00:57.2]} 39... Nc7 {[%clk 0:01:49.9]} 40. Bg4 {[%clk 0:00:58]}
40... Ke5 {[%clk 0:01:49.1]} 41. Bd7 {[%clk 0:00:52.9]} 41... Ke4 {[%clk
0:01:45.5]} 42. Bc6+ {[%clk 0:00:48.4]} 42... Ke5 {[%clk 0:01:46.5]} 43. Bd7
{[%clk 0:00:45]} 43... h5 {[%clk 0:01:46.7]} 44. c5 {[%clk 0:00:33.2]} 44...
bxc5 {[%clk 0:01:43.9]} 45. bxc5 {[%clk 0:00:35.1]} 45... Kd5 {[%clk 0:01:43.6]}
46. c6 {[%clk 0:00:36.1]} 46... Ke4 {[%clk 0:01:31.8]} 47. Kc4 {[%clk
0:00:25.7]} 47... Kf3 {[%clk 0:01:31.9]} 48. Kc5 {[%clk 0:00:25.2]} 48... Kxf2
{[%clk 0:01:32.7]} 49. Kb6 {[%clk 0:00:25.7]} 49... Nd5+ {[%clk 0:01:33.7]} 50.
Kc5 {[%clk 0:00:26.9]} 50... Nc7 {[%clk 0:01:34.8]} 51. Kb6 {[%clk 0:00:27.8]}
51... Nd5+ {[%clk 0:01:27.3]} 52. Kc5 {[%clk 0:00:28.5]} 52... Nc7 {[%clk
0:01:28.8]} 53. Kb6 {[%clk 0:00:27.5]} 1/2-1/2

[Event "*** MasterClass Titled Tuesday Blitz"]
[Site "Chess.com"]
[Date "2017.08.01"]
[Round "6"]
[White "Bengalas"]
[Black "Keaton87"]
[Result "1-0"]
[WhiteElo "2495"]
[BlackElo "2492"]
[TimeControl "180+2"]
[EndTime "14:19:11 PDT"]
[Termination "Bengalas won by checkmate"]

1. d4 {[%clk 0:03:01.9]} 1... d5 {[%clk 0:03:00.5]} 2. c4 {[%clk 0:03:00.7]}
2... e6 {[%clk 0:03:01.9]} 3. Nc3 {[%clk 0:03:01.1]} 3... Be7 {[%clk 0:03:03.2]}
4. cxd5 {[%clk 0:03:01.7]} 4... exd5 {[%clk 0:03:04.2]} 5. Bf4 {[%clk
0:03:02.2]} 5... c6 {[%clk 0:03:04.5]} 6. e3 {[%clk 0:03:02.8]} 6... Bd6 {[%clk
0:03:00.5]} 7. Bxd6 {[%clk 0:03:01.1]} 7... Qxd6 {[%clk 0:03:02.5]} 8. Qc2
{[%clk 0:03:01.8]} 8... Ne7 {[%clk 0:03:02.3]} 9. Bd3 {[%clk 0:03:02.5]} 9... g6
{[%clk 0:03:02.8]} 10. Nf3 {[%clk 0:02:49]} 10... Bf5 {[%clk 0:03:03.4]} 11. O-O
{[%clk 0:02:49.3]} 11... O-O {[%clk 0:03:02.8]} 12. b4 {[%clk 0:02:48.2]} 12...
Na6 {[%clk 0:02:57.1]} 13. a3 {[%clk 0:02:42.2]} 13... Nc7 {[%clk 0:02:57.8]}
14. Rab1 {[%clk 0:02:32.8]} 14... a5 {[%clk 0:02:52]} 15. Ne5 {[%clk 0:02:17.8]}
15... axb4 {[%clk 0:02:49.5]} 16. axb4 {[%clk 0:02:18.3]} 16... Ra3 {[%clk
0:02:37.8]} 17. Bxf5 {[%clk 0:02:00.2]} 17... Nxf5 {[%clk 0:02:39.7]} 18. Rb3
{[%clk 0:02:00.6]} 18... Rfa8 {[%clk 0:02:36.7]} 19. Rxa3 {[%clk 0:02:01.5]}
19... Rxa3 {[%clk 0:02:38.7]} 20. Qb2 {[%clk 0:02:02.6]} 20... Ra8 {[%clk
0:02:34.9]} 21. Nd3 {[%clk 0:01:59.1]} 21... b6 {[%clk 0:02:31]} 22. Rc1 {[%clk
0:01:54.6]} 22... Ne6 {[%clk 0:02:18.4]} 23. Ra1 {[%clk 0:01:40.2]} 23... Qf8
{[%clk 0:02:17.7]} 24. Ra3 {[%clk 0:01:34.2]} 24... Nd6 {[%clk 0:02:12.4]} 25.
Qa2 {[%clk 0:01:26.8]} 25... Rc8 {[%clk 0:02:00.4]} 26. Ra7 {[%clk 0:01:24.7]}
26... Nc4 {[%clk 0:01:59.2]} 27. b5 {[%clk 0:01:15.5]} 27... Qd6 {[%clk
0:01:33.9]} 28. bxc6 {[%clk 0:01:06.6]} 28... Qxc6 {[%clk 0:01:35.8]} 29. Nb4
{[%clk 0:00:53.4]} 29... Qd6 {[%clk 0:01:25.1]} 30. Nbxd5 {[%clk 0:00:52]} 30...
Kg7 {[%clk 0:00:56]} 31. g3 {[%clk 0:00:36.4]} 31... b5 {[%clk 0:00:54.7]} 32.
Ra6 {[%clk 0:00:27.1]} 32... Qb8 {[%clk 0:00:49.3]} 33. Qb3 {[%clk 0:00:22.1]}
33... Rd8 {[%clk 0:00:20.7]} 34. Ne7 {[%clk 0:00:18.6]} 34... Nd2 {[%clk
0:00:06.4]} 35. Qxb5 {[%clk 0:00:17.6]} 35... Nf3+ {[%clk 0:00:05.5]} 36. Kg2
{[%clk 0:00:16.5]} 36... Ne1+ {[%clk 0:00:03.3]} 37. Kf1 {[%clk 0:00:17.5]}
37... Nc2 {[%clk 0:00:03.5]} 38. Nc6 {[%clk 0:00:11.3]} 38... Qxb5+ {[%clk
0:00:04]} 39. Nxb5 {[%clk 0:00:11.6]} 39... Rc8 {[%clk 0:00:05.5]} 40. Nd6
{[%clk 0:00:10.5]} 40... Rc7 {[%clk 0:00:06]} 41. Ne5 {[%clk 0:00:09.5]} 41...
Kf6 {[%clk 0:00:04.6]} 42. Ne4+ {[%clk 0:00:06]} 42... Kf5 {[%clk 0:00:04.7]}
43. Nd6+ {[%clk 0:00:04.8]} 43... Kg5 {[%clk 0:00:04.3]} 44. Ndxf7+ {[%clk
0:00:05.7]} 44... Kf5 {[%clk 0:00:04.3]} 45. Nd6+ {[%clk 0:00:06.5]} 45... Kg5
{[%clk 0:00:05.7]} 46. Ne4+ {[%clk 0:00:07.4]} 46... Kf5 {[%clk 0:00:06.3]} 47.
Nd6+ {[%clk 0:00:08.3]} 47... Kg5 {[%clk 0:00:06.9]} 48. h4+ {[%clk 0:00:09.2]}
48... Kh5 {[%clk 0:00:06.1]} 49. Kg2 {[%clk 0:00:09.5]} 49... g5 {[%clk
0:00:06.6]} 50. g4+ {[%clk 0:00:09.3]} 50... Kxh4 {[%clk 0:00:07.8]} 51. Nf5#
{[%clk 0:00:09.8]} 1-0

[Event "*** MasterClass Titled Tuesday Blitz"]
[Site "Chess.com"]
[Date "2017.08.01"]
[Round "6"]
[White "AdrianaNikolova"]
[Black "gui_borba"]
[Result "0-1"]
[WhiteElo "2279"]
[BlackElo "2132"]
[TimeControl "180+2"]
[EndTime "14:19:17 PDT"]
[Termination "gui_borba won on time"]

1. e4 {[%clk 0:02:46.8]} 1... c6 {[%clk 0:03:00]} 2. d4 {[%clk 0:02:47]} 2... d5
{[%clk 0:03:01.1]} 3. Nd2 {[%clk 0:02:48.5]} 3... dxe4 {[%clk 0:03:02]} 4. Nxe4
{[%clk 0:02:50.4]} 4... Nf6 {[%clk 0:03:03.1]} 5. Nxf6+ {[%clk 0:02:51.4]} 5...
gxf6 {[%clk 0:03:05]} 6. c3 {[%clk 0:02:47.1]} 6... Qd5 {[%clk 0:03:04.9]} 7.
Nf3 {[%clk 0:02:44.3]} 7... Bg4 {[%clk 0:03:04.4]} 8. Be2 {[%clk 0:02:45.5]}
8... Nd7 {[%clk 0:03:05]} 9. Be3 {[%clk 0:02:46.7]} 9... O-O-O {[%clk
0:03:04.8]} 10. Qb3 {[%clk 0:02:45.4]} 10... Kb8 {[%clk 0:02:44]} 11. Qxd5
{[%clk 0:02:30.7]} 11... cxd5 {[%clk 0:02:45.9]} 12. h3 {[%clk 0:02:32]} 12...
Bxf3 {[%clk 0:02:38.5]} 13. Bxf3 {[%clk 0:02:32.4]} 13... e6 {[%clk 0:02:39.8]}
14. Bf4+ {[%clk 0:02:20.6]} 14... Ka8 {[%clk 0:02:36.8]} 15. O-O-O {[%clk
0:02:19.2]} 15... Nb6 {[%clk 0:02:35.7]} 16. Bc7 {[%clk 0:02:16.6]} 16... Rd7
{[%clk 0:02:32.6]} 17. Bxb6 {[%clk 0:02:17.4]} 17... axb6 {[%clk 0:02:34.5]} 18.
Bh5 {[%clk 0:02:16.3]} 18... Bd6 {[%clk 0:02:33.1]} 19. Rd3 {[%clk 0:02:13.7]}
19... Rg8 {[%clk 0:02:32.4]} 20. g4 {[%clk 0:01:36]} 20... Bf4+ {[%clk
0:02:23.4]} 21. Kc2 {[%clk 0:01:35.4]} 21... Kb8 {[%clk 0:02:11.8]} 22. Rhd1
{[%clk 0:01:29.8]} 22... Kc7 {[%clk 0:02:11.3]} 23. b3 {[%clk 0:01:22.9]} 23...
b5 {[%clk 0:01:57.8]} 24. c4 {[%clk 0:01:08.5]} 24... bxc4 {[%clk 0:01:55.3]}
25. bxc4 {[%clk 0:01:10.4]} 25... dxc4 {[%clk 0:01:52.7]} 26. Rc3 {[%clk
0:01:04.7]} 26... b5 {[%clk 0:01:28.5]} 27. a4 {[%clk 0:01:05.2]} 27... Ra8
{[%clk 0:01:18.6]} 28. axb5 {[%clk 0:01:01.7]} 28... Ra2+ {[%clk 0:01:19.2]} 29.
Kb1 {[%clk 0:01:01.6]} 29... Ra4 {[%clk 0:01:20.2]} 30. Rf3 {[%clk 0:00:51.9]}
30... Bg5 {[%clk 0:01:11.9]} 31. Rc3 {[%clk 0:00:50.3]} 31... Kb6 {[%clk
0:01:08.5]} 32. Kc2 {[%clk 0:00:46.6]} 32... Rd5 {[%clk 0:00:59.8]} 33. Rb1
{[%clk 0:00:21.3]} 33... Rxd4 {[%clk 0:00:58.1]} 34. Rf3 {[%clk 0:00:14.5]}
34... Rd2+ {[%clk 0:00:55.9]} 35. Kc3 {[%clk 0:00:13.9]} 35... Ra3+ {[%clk
0:00:57.2]} 36. Kxc4 {[%clk 0:00:14.6]} 36... Rxf3 {[%clk 0:00:57.9]} 37. Bxf7
{[%clk 0:00:15.7]} 37... e5 {[%clk 0:00:34]} 38. Ra1 {[%clk 0:00:05.6]} 38...
Rfxf2 {[%clk 0:00:32.4]} 39. Ra6+ {[%clk 0:00:05.4]} 39... Kb7 {[%clk
0:00:33.7]} 40. Bd5+ {[%clk 0:00:05.5]} 40... Rxd5 {[%clk 0:00:31.7]} 41. Kxd5
{[%clk 0:00:06.2]} 41... Rb2 {[%clk 0:00:32]} 42. Kc5 {[%clk 0:00:06]} 42... e4
{[%clk 0:00:32.7]} 43. Re6 {[%clk 0:00:06]} 43... e3 {[%clk 0:00:33.2]} 44. Re7+
{[%clk 0:00:06.8]} 44... Kc8 {[%clk 0:00:31.8]} 45. Kc6 {[%clk 0:00:07.2]} 45...
Rc2+ {[%clk 0:00:32.5]} 46. Kd6 {[%clk 0:00:07.6]} 46... e2 {[%clk 0:00:28.8]}
47. b6 {[%clk 0:00:08.2]} 47... Bf4+ {[%clk 0:00:28.9]} 48. Kd5 {[%clk
0:00:08.7]} 48... Bg3 {[%clk 0:00:28.9]} 49. b7+ {[%clk 0:00:07.5]} 49... Kb8
{[%clk 0:00:30]} 50. Kd4 {[%clk 0:00:07.3]} 50... e1=Q {[%clk 0:00:30.1]} 51.
Rxe1 {[%clk 0:00:08.3]} 51... Bxe1 {[%clk 0:00:32]} 0-1